[Event "Titled Tuesday Blitz August 3 2021"]
[White "Liyanage, Ranindu Dilshan"]
[Black "Reprintsev, Alexander"]
[WhiteFideId "9915834"]
[BlackFideId "14100541"]
[WhiteElo "1839"]
[BlackElo "2126"]
[Result "1-0"]
[Round "08"]
[TimeControl "180+1"]
[Date "2021.08.03"]
[WhiteClock "0:01:55"]
[BlackClock "0:02:06"]

1. e4 {[%clk 0:03:00]}  d5 {[%clk 0:02:59]} 2. exd5 {[%clk 0:03:00]}  Qxd5 {[%clk 0:02:59]} 3. Nc3 {[%clk 0:03:00]}  Qa5 {[%clk 0:02:59]} 4. d4 {[%clk 0:03:00]}  Nf6 {[%clk 0:02:59]} 5. Nf3 {[%clk 0:03:00]}  Nc6 {[%clk 0:02:59]} 6. Bb5 {[%clk 0:02:59]}  Ne4 {[%clk 0:02:58]} 7. Bd2 {[%clk 0:02:49]}  Nxc3 {[%clk 0:02:57]} 8. Bxc6+ {[%clk 0:02:48]}  bxc6 {[%clk 0:02:57]} 9. Bxc3 {[%clk 0:02:44]}  Qd5 {[%clk 0:02:57]} 10. O-O {[%clk 0:02:43]}  Bg4 {[%clk 0:02:56]} 11. Re1 {[%clk 0:02:39]}  Bxf3 {[%clk 0:02:56]} 12. gxf3 {[%clk 0:02:39]}  e6 {[%clk 0:02:56]} 13. Re5 {[%clk 0:02:36]}  Qd8 {[%clk 0:02:56]} 14. Qe2 {[%clk 0:02:32]}  Bd6 {[%clk 0:02:56]} 15. Re4 {[%clk 0:02:32]}  O-O {[%clk 0:02:52]} 16. Kh1 {[%clk 0:02:31]}  f5 {[%clk 0:02:45]} 17. Rxe6 {[%clk 0:02:31]}  Qh4 {[%clk 0:02:44]} 18. Re5 {[%clk 0:02:22]}  Bxe5 {[%clk 0:02:37]} 19. dxe5 {[%clk 0:02:23]}  Rad8 {[%clk 0:02:23]} 20. Rg1 {[%clk 0:02:15]}  g6 {[%clk 0:02:07]} 21. e6 {[%clk 0:02:05]}  Rd5 {[%clk 0:02:06]} 22. e7 {[%clk 0:01:57]}  Re8 {[%clk 0:02:06]} 23. Qe6# {[%clk 0:01:55]} 1-0


[Site "https://www.chess.com"]

[Event "Titled Tuesday Blitz August 3 2021"]
[White "Makhnev, Denis"]
[Black "Serikbay, Assel"]
[WhiteFideId "13707647"]
[BlackFideId "13706799"]
[WhiteElo "2537"]
[BlackElo "2044"]
[Result "1-0"]
[Round "08"]
[TimeControl "180+1"]
[Date "2021.08.03"]
[WhiteClock "0:01:13"]
[BlackClock "0:00:20"]

1. d4 {[%clk 0:03:00]}  d5 {[%clk 0:02:59]} 2. c4 {[%clk 0:03:01]}  c6 {[%clk 0:02:59]} 3. Nf3 {[%clk 0:03:02]}  Nf6 {[%clk 0:02:59]} 4. Nc3 {[%clk 0:03:02]}  dxc4 {[%clk 0:02:56]} 5. a4 {[%clk 0:03:02]}  Bf5 {[%clk 0:02:53]} 6. Ne5 {[%clk 0:03:02]}  Nbd7 {[%clk 0:02:52]} 7. Nxc4 {[%clk 0:03:02]}  Qc7 {[%clk 0:02:52]} 8. g3 {[%clk 0:03:01]}  e5 {[%clk 0:02:52]} 9. dxe5 {[%clk 0:03:00]}  Nxe5 {[%clk 0:02:53]} 10. Bf4 {[%clk 0:03:01]}  Nfd7 {[%clk 0:02:52]} 11. Bg2 {[%clk 0:03:01]}  f6 {[%clk 0:02:51]} 12. O-O {[%clk 0:02:58]}  g5 {[%clk 0:02:22]} 13. Bxe5 {[%clk 0:02:56]}  Nxe5 {[%clk 0:02:14]} 14. Nxe5 {[%clk 0:02:56]}  Qxe5 {[%clk 0:02:12]} 15. a5 {[%clk 0:02:56]}  a6 {[%clk 0:02:00]} 16. Qb3 {[%clk 0:02:50]}  Qe7 {[%clk 0:01:16]} 17. Ra4 {[%clk 0:02:23]}  Bg7 {[%clk 0:01:12]} 18. Rd1 {[%clk 0:02:05]}  Be6 {[%clk 0:01:10]} 19. Qb4 {[%clk 0:02:05]}  Bf8 {[%clk 0:00:56]} 20. Qb6 {[%clk 0:02:01]}  Rc8 {[%clk 0:00:43]} 21. Re4 {[%clk 0:01:55]}  f5 {[%clk 0:00:42]} 22. Nd5 {[%clk 0:01:20]}  Qf7 {[%clk 0:00:20]} 23. Rxe6+ {[%clk 0:01:11]}  Qxe6 {[%clk 0:00:20]} 24. Nc7+ {[%clk 0:01:12]}  Rxc7 {[%clk 0:00:20]} 25. Qxc7 {[%clk 0:01:13]} 1-0


[Site "https://www.chess.com"]

[Event "Titled Tuesday Blitz August 3 2021"]
[White "Maksimovic, Bojan"]
[Black "Volkov, Maksim"]
[WhiteFideId "14408120"]
[BlackFideId "54123070"]
[WhiteElo "2439"]
[BlackElo "2113"]
[Result "1-0"]
[Round "08"]
[TimeControl "180+1"]
[Date "2021.08.03"]
[WhiteClock "0:00:02"]
[BlackClock "0:00:05"]

1. g3 {[%clk 0:03:00]}  d5 {[%clk 0:02:59]} 2. Bg2 {[%clk 0:03:01]}  Nf6 {[%clk 0:02:59]} 3. d3 {[%clk 0:03:02]}  c6 {[%clk 0:02:59]} 4. Nd2 {[%clk 0:03:02]}  Bg4 {[%clk 0:02:56]} 5. f3 {[%clk 0:03:03]}  Bh5 {[%clk 0:02:54]} 6. e4 {[%clk 0:03:03]}  dxe4 {[%clk 0:02:54]} 7. dxe4 {[%clk 0:03:04]}  e5 {[%clk 0:02:54]} 8. Nh3 {[%clk 0:03:05]}  Bc5 {[%clk 0:02:51]} 9. Nf2 {[%clk 0:03:05]}  O-O {[%clk 0:02:47]} 10. O-O {[%clk 0:03:05]}  Nbd7 {[%clk 0:02:46]} 11. Qe2 {[%clk 0:03:01]}  Re8 {[%clk 0:02:45]} 12. Nb3 {[%clk 0:03:00]}  Bb6 {[%clk 0:02:45]} 13. a4 {[%clk 0:03:00]}  a5 {[%clk 0:02:43]} 14. Be3 {[%clk 0:02:59]}  Nf8 {[%clk 0:02:42]} 15. Nc5 {[%clk 0:02:57]}  Bxc5 {[%clk 0:02:39]} 16. Bxc5 {[%clk 0:02:57]}  Ne6 {[%clk 0:02:40]} 17. Be3 {[%clk 0:02:57]}  Qc7 {[%clk 0:02:38]} 18. c3 {[%clk 0:02:56]}  Rad8 {[%clk 0:02:37]} 19. h4 {[%clk 0:02:53]}  h6 {[%clk 0:02:34]} 20. Bh3 {[%clk 0:02:38]}  Nd7 {[%clk 0:02:08]} 21. Bxe6 {[%clk 0:02:30]}  Rxe6 {[%clk 0:02:08]} 22. g4 {[%clk 0:02:30]}  Bg6 {[%clk 0:02:07]} 23. h5 {[%clk 0:02:30]}  Bh7 {[%clk 0:02:07]} 24. Nd3 {[%clk 0:02:31]}  Kh8 {[%clk 0:02:05]} 25. Rad1 {[%clk 0:02:30]}  f6 {[%clk 0:02:04]} 26. Qf2 {[%clk 0:02:24]}  Bg8 {[%clk 0:02:00]} 27. Nc5 {[%clk 0:02:18]}  Nxc5 {[%clk 0:01:52]} 28. Bxc5 {[%clk 0:02:19]}  Qb8 {[%clk 0:01:33]} 29. Ba7 {[%clk 0:02:09]}  Qc8 {[%clk 0:01:26]} 30. Bb6 {[%clk 0:02:08]}  Rxd1 {[%clk 0:01:20]} 31. Rxd1 {[%clk 0:02:09]}  Re7 {[%clk 0:01:18]} 32. Rd8 {[%clk 0:01:42]}  Qe6 {[%clk 0:01:17]} 33. Qd2 {[%clk 0:01:42]}  Qb3 {[%clk 0:01:12]} 34. Bc5 {[%clk 0:01:19]}  Rf7 {[%clk 0:01:11]} 35. Ra8 {[%clk 0:01:14]}  b6 {[%clk 0:00:59]} 36. Be3 {[%clk 0:01:00]}  Kh7 {[%clk 0:00:47]} 37. Kf2 {[%clk 0:00:47]}  Rb7 {[%clk 0:00:42]} 38. Kg3 {[%clk 0:00:43]}  Qxa4 {[%clk 0:00:39]} 39. b4 {[%clk 0:00:16]}  Qb5 {[%clk 0:00:32]} 40. bxa5 {[%clk 0:00:15]}  bxa5 {[%clk 0:00:33]} 41. Qd8 {[%clk 0:00:14]}  Qc4 {[%clk 0:00:32]} 42. Qc8 {[%clk 0:00:02]}  Rb2 {[%clk 0:00:29]} 43. Bxh6 {[%clk 0:00:02]}  Qe6 {[%clk 0:00:15]} 44. Qxe6 {[%clk 0:00:02]}  Bxe6 {[%clk 0:00:16]} 45. Be3 {[%clk 0:00:02]}  Ra2 {[%clk 0:00:15]} 46. Bb6 {[%clk 0:00:01]}  a4 {[%clk 0:00:16]} 47. Bc5 {[%clk 0:00:02]}  Bb3 {[%clk 0:00:15]} 48. Ra7 {[%clk 0:00:02]}  Kg8 {[%clk 0:00:14]} 49. Be7 {[%clk 0:00:02]}  Rc2 {[%clk 0:00:13]} 50. h6 {[%clk 0:00:02]}  gxh6 {[%clk 0:00:13]} 51. Bxf6 {[%clk 0:00:02]}  Rxc3 {[%clk 0:00:14]} 52. Bxe5 {[%clk 0:00:03]}  Rd3 {[%clk 0:00:13]} 53. Kf2 {[%clk 0:00:03]}  Bc2 {[%clk 0:00:12]} 54. f4 {[%clk 0:00:03]}  a3 {[%clk 0:00:09]} 55. Ke2 {[%clk 0:00:03]}  Bb1 {[%clk 0:00:09]} 56. Ra8+ {[%clk 0:00:02]}  Kf7 {[%clk 0:00:09]} 57. Ra7+ {[%clk 0:00:03]}  Ke8 {[%clk 0:00:09]} 58. Ba1 {[%clk 0:00:04]}  Rb3 {[%clk 0:00:08]} 59. e5 {[%clk 0:00:03]}  a2 {[%clk 0:00:08]} 60. f5 {[%clk 0:00:03]}  Rb4 {[%clk 0:00:08]} 61. e6 {[%clk 0:00:03]}  Re4+ {[%clk 0:00:06]} 62. Kf3 {[%clk 0:00:04]}  Rb4 {[%clk 0:00:06]} 63. f6 {[%clk 0:00:03]}  Rb3+ {[%clk 0:00:06]} 64. Kf2 {[%clk 0:00:03]}  Kd8 {[%clk 0:00:05]} 65. f7 {[%clk 0:00:02]} 1-0


[Site "https://www.chess.com"]

[Event "Titled Tuesday Blitz August 3 2021"]
[White "Mikhailovsky, Vladimir"]
[Black "FGHSMN"]
[WhiteFideId "34105414"]
[WhiteElo "2315"]
[BlackElo "2535"]
[Result "0-1"]
[Round "08"]
[TimeControl "180+1"]
[Date "2021.08.03"]
[WhiteClock "0:00:04"]
[BlackClock "0:00:41"]

1. d4 {[%clk 0:03:00]}  Nf6 {[%clk 0:02:58]} 2. c4 {[%clk 0:03:00]}  c5 {[%clk 0:02:58]} 3. d5 {[%clk 0:02:47]}  b5 {[%clk 0:02:55]} 4. Nc3 {[%clk 0:02:48]}  bxc4 {[%clk 0:02:53]} 5. e4 {[%clk 0:02:47]}  d6 {[%clk 0:02:53]} 6. Bxc4 {[%clk 0:02:46]}  g6 {[%clk 0:02:54]} 7. Nge2 {[%clk 0:02:45]}  Bg7 {[%clk 0:02:54]} 8. h4 {[%clk 0:02:45]}  Nbd7 {[%clk 0:02:52]} 9. Ng3 {[%clk 0:02:03]}  h5 {[%clk 0:02:50]} 10. O-O {[%clk 0:02:00]}  O-O {[%clk 0:02:47]} 11. Bg5 {[%clk 0:01:56]}  Rb8 {[%clk 0:02:44]} 12. Qd2 {[%clk 0:01:50]}  Rb4 {[%clk 0:02:35]} 13. Be2 {[%clk 0:01:38]}  Ne5 {[%clk 0:02:30]} 14. b3 {[%clk 0:01:29]}  Nh7 {[%clk 0:02:10]} 15. Bh6 {[%clk 0:01:26]}  Rd4 {[%clk 0:02:10]} 16. Qc1 {[%clk 0:01:11]}  Nf6 {[%clk 0:02:00]} 17. Bxg7 {[%clk 0:01:10]}  Kxg7 {[%clk 0:02:01]} 18. Nb5 {[%clk 0:00:57]}  Rb4 {[%clk 0:01:51]} 19. a3 {[%clk 0:00:51]}  Rxb3 {[%clk 0:01:47]} 20. Qc2 {[%clk 0:00:51]}  c4 {[%clk 0:01:30]} 21. Bxc4 {[%clk 0:00:39]}  Rxg3 {[%clk 0:01:29]} 22. fxg3 {[%clk 0:00:39]}  Qb6+ {[%clk 0:01:29]} 23. Kh1 {[%clk 0:00:31]}  Ba6 {[%clk 0:01:27]} 24. Rab1 {[%clk 0:00:26]}  Qc5 {[%clk 0:00:48]} 25. Bd3 {[%clk 0:00:18]}  Qe3 {[%clk 0:00:47]} 26. Be2 {[%clk 0:00:11]}  Nxe4 {[%clk 0:00:45]} 27. Rb3 {[%clk 0:00:05]}  Nxg3+ {[%clk 0:00:45]} 28. Kh2 {[%clk 0:00:05]}  Nxf1+ {[%clk 0:00:44]} 29. Bxf1 {[%clk 0:00:06]}  Ng4+ {[%clk 0:00:44]} 30. Kh1 {[%clk 0:00:05]}  Qf4 {[%clk 0:00:42]} 31. g3 {[%clk 0:00:04]}  Qxf1# {[%clk 0:00:41]} 0-1


[Site "https://www.chess.com"]

[Event "Titled Tuesday Blitz August 3 2021"]
[White "Nefedov, Sergey"]
[Black "Berezin, Viktor"]
[WhiteFideId "24113417"]
[BlackFideId "14107872"]
[WhiteElo "2385"]
[BlackElo "2310"]
[Result "0-1"]
[Round "08"]
[TimeControl "180+1"]
[Date "2021.08.03"]
[WhiteClock "0:00:41"]
[BlackClock "0:01:15"]

1. d4 {[%clk 0:03:00]}  Nf6 {[%clk 0:02:58]} 2. Nf3 {[%clk 0:02:56]}  g6 {[%clk 0:02:59]} 3. c4 {[%clk 0:02:55]}  Bg7 {[%clk 0:02:59]} 4. Nc3 {[%clk 0:02:56]}  O-O {[%clk 0:02:59]} 5. Bg5 {[%clk 0:02:56]}  d6 {[%clk 0:03:00]} 6. Qd2 {[%clk 0:02:56]}  Nc6 {[%clk 0:02:57]} 7. d5 {[%clk 0:02:55]}  Na5 {[%clk 0:02:55]} 8. e4 {[%clk 0:02:53]}  c5 {[%clk 0:02:53]} 9. Bh6 {[%clk 0:02:53]}  a6 {[%clk 0:02:52]} 10. h4 {[%clk 0:02:52]}  e5 {[%clk 0:02:47]} 11. dxe6 {[%clk 0:02:46]}  Bxe6 {[%clk 0:02:44]} 12. Bxg7 {[%clk 0:02:46]}  Kxg7 {[%clk 0:02:43]} 13. b3 {[%clk 0:02:46]}  b5 {[%clk 0:02:40]} 14. cxb5 {[%clk 0:02:12]}  axb5 {[%clk 0:02:40]} 15. Qb2 {[%clk 0:02:04]}  Kg8 {[%clk 0:02:34]} 16. Bd3 {[%clk 0:02:01]}  c4 {[%clk 0:02:31]} 17. bxc4 {[%clk 0:01:55]}  bxc4 {[%clk 0:02:27]} 18. Be2 {[%clk 0:01:51]}  Rb8 {[%clk 0:02:22]} 19. Qd2 {[%clk 0:01:51]}  d5 {[%clk 0:02:16]} 20. e5 {[%clk 0:01:41]}  Ne4 {[%clk 0:02:05]} 21. Qd4 {[%clk 0:01:32]}  Nc6 {[%clk 0:02:01]} 22. Qe3 {[%clk 0:01:27]}  Nxc3 {[%clk 0:02:00]} 23. Qxc3 {[%clk 0:01:26]}  d4 {[%clk 0:02:00]} 24. Qd2 {[%clk 0:01:25]}  d3 {[%clk 0:02:00]} 25. Bd1 {[%clk 0:01:23]}  Qd5 {[%clk 0:01:47]} 26. O-O {[%clk 0:01:21]}  Nxe5 {[%clk 0:01:46]} 27. Re1 {[%clk 0:01:11]}  Nxf3+ {[%clk 0:01:41]} 28. Bxf3 {[%clk 0:01:11]}  Qd4 {[%clk 0:01:41]} 29. Rac1 {[%clk 0:01:09]}  Rb2 {[%clk 0:01:40]} 30. Qc3 {[%clk 0:01:09]}  Qxf2+ {[%clk 0:01:39]} 31. Kh1 {[%clk 0:01:09]}  Qxh4+ {[%clk 0:01:38]} 32. Kg1 {[%clk 0:01:09]}  Qf2+ {[%clk 0:01:35]} 33. Kh1 {[%clk 0:01:09]}  d2 {[%clk 0:01:24]} 34. Rf1 {[%clk 0:00:48]}  dxc1=Q {[%clk 0:01:21]} 35. Qxc1 {[%clk 0:00:48]}  Qh4+ {[%clk 0:01:20]} 36. Kg1 {[%clk 0:00:48]}  Qd4+ {[%clk 0:01:19]} 37. Kh1 {[%clk 0:00:48]}  c3 {[%clk 0:01:17]} 38. a4 {[%clk 0:00:41]}  c2 {[%clk 0:01:15]} 0-1


[Site "https://www.chess.com"]

[Event "Titled Tuesday Blitz August 3 2021"]
[White "Omk124"]
[Black "Maly, Alexey"]
[BlackFideId "14103184"]
[WhiteElo "2536"]
[BlackElo "2285"]
[Result "0-1"]
[Round "08"]
[TimeControl "180+1"]
[Date "2021.08.03"]
[WhiteClock "0:00:23"]
[BlackClock "0:00:37"]

1. e4 {[%clk 0:03:00]}  c6 {[%clk 0:02:59]} 2. Ne2 {[%clk 0:03:01]}  d5 {[%clk 0:03:00]} 3. exd5 {[%clk 0:03:00]}  cxd5 {[%clk 0:03:00]} 4. d4 {[%clk 0:03:00]}  Nc6 {[%clk 0:03:00]} 5. Nf4 {[%clk 0:02:59]}  Nf6 {[%clk 0:02:56]} 6. c3 {[%clk 0:02:59]}  Bf5 {[%clk 0:02:55]} 7. Bd3 {[%clk 0:02:59]}  Bxd3 {[%clk 0:02:54]} 8. Nxd3 {[%clk 0:03:00]}  g6 {[%clk 0:02:51]} 9. Bf4 {[%clk 0:03:00]}  Bg7 {[%clk 0:02:51]} 10. Nd2 {[%clk 0:02:59]}  O-O {[%clk 0:02:51]} 11. O-O {[%clk 0:02:58]}  e6 {[%clk 0:02:51]} 12. h3 {[%clk 0:02:58]}  Rc8 {[%clk 0:02:47]} 13. Ne5 {[%clk 0:02:55]}  Nxe5 {[%clk 0:02:46]} 14. Bxe5 {[%clk 0:02:56]}  Qe7 {[%clk 0:02:45]} 15. Re1 {[%clk 0:02:56]}  Nd7 {[%clk 0:02:39]} 16. Bxg7 {[%clk 0:02:55]}  Kxg7 {[%clk 0:02:40]} 17. Qe2 {[%clk 0:02:55]}  Qd6 {[%clk 0:02:38]} 18. Nf3 {[%clk 0:02:53]}  a6 {[%clk 0:02:38]} 19. Rad1 {[%clk 0:02:52]}  b5 {[%clk 0:02:37]} 20. Qe3 {[%clk 0:02:52]}  a5 {[%clk 0:02:34]} 21. h4 {[%clk 0:02:52]}  h5 {[%clk 0:02:29]} 22. Qg5 {[%clk 0:02:47]}  b4 {[%clk 0:02:26]} 23. Re3 {[%clk 0:02:47]}  bxc3 {[%clk 0:02:26]} 24. bxc3 {[%clk 0:02:48]}  Rfe8 {[%clk 0:02:20]} 25. Rde1 {[%clk 0:02:40]}  Qe7 {[%clk 0:02:15]} 26. Qxd5 {[%clk 0:02:32]}  Rxc3 {[%clk 0:01:56]} 27. Qxa5 {[%clk 0:02:25]}  Rc2 {[%clk 0:01:52]} 28. Ne5 {[%clk 0:02:19]}  Qxh4 {[%clk 0:01:49]} 29. Rf3 {[%clk 0:02:16]}  Nxe5 {[%clk 0:01:41]} 30. Qxe5+ {[%clk 0:02:17]}  Kg8 {[%clk 0:01:38]} 31. Rf4 {[%clk 0:02:00]}  Qd8 {[%clk 0:01:34]} 32. a4 {[%clk 0:01:52]}  Qb8 {[%clk 0:01:23]} 33. Qf6 {[%clk 0:01:44]}  Rc7 {[%clk 0:01:21]} 34. Re3 {[%clk 0:01:39]}  Qd8 {[%clk 0:01:19]} 35. Qe5 {[%clk 0:01:31]}  Rd7 {[%clk 0:01:16]} 36. Ref3 {[%clk 0:01:27]}  Rd5 {[%clk 0:01:14]} 37. Qe4 {[%clk 0:01:27]}  f5 {[%clk 0:01:10]} 38. Qe2 {[%clk 0:01:22]}  g5 {[%clk 0:01:10]} 39. Rg3 {[%clk 0:01:22]}  Kf8 {[%clk 0:01:05]} 40. Rff3 {[%clk 0:00:41]}  g4 {[%clk 0:01:05]} 41. Rf4 {[%clk 0:00:34]}  Rxd4 {[%clk 0:01:01]} 42. Qe5 {[%clk 0:00:33]}  Rd1+ {[%clk 0:00:57]} 43. Kh2 {[%clk 0:00:32]}  Qg5 {[%clk 0:00:48]} 44. Rc3 {[%clk 0:00:23]}  Kf7 {[%clk 0:00:45]} 45. Rc7+ {[%clk 0:00:23]}  Re7 {[%clk 0:00:42]} 46. Rxe7+ {[%clk 0:00:23]}  Qxe7 {[%clk 0:00:40]} 47. Qh8 {[%clk 0:00:23]}  Qh4# {[%clk 0:00:37]} 0-1


[Site "https://www.chess.com"]

[Event "Titled Tuesday Blitz August 3 2021"]
[White "Perez Gormaz, Matias"]
[Black "Miszler, Levente"]
[WhiteFideId "3406342"]
[BlackFideId "763276"]
[WhiteElo "2414"]
[BlackElo "1967"]
[Result "1-0"]
[Round "08"]
[TimeControl "180+1"]
[Date "2021.08.03"]
[WhiteClock "0:00:10"]
[BlackClock "0:00:03"]

1. e4 {[%clk 0:03:00]}  e6 {[%clk 0:03:00]} 2. d3 {[%clk 0:02:59]}  d5 {[%clk 0:03:00]} 3. Nd2 {[%clk 0:03:00]}  Nf6 {[%clk 0:03:00]} 4. Ngf3 {[%clk 0:03:01]}  Be7 {[%clk 0:02:56]} 5. g3 {[%clk 0:03:01]}  O-O {[%clk 0:02:56]} 6. Bg2 {[%clk 0:03:01]}  c5 {[%clk 0:02:55]} 7. O-O {[%clk 0:03:02]}  Nc6 {[%clk 0:02:55]} 8. e5 {[%clk 0:03:02]}  Nd7 {[%clk 0:02:55]} 9. Re1 {[%clk 0:03:03]}  b5 {[%clk 0:02:54]} 10. Nf1 {[%clk 0:03:03]}  Bb7 {[%clk 0:02:53]} 11. h4 {[%clk 0:03:04]}  Qc7 {[%clk 0:02:53]} 12. Bf4 {[%clk 0:03:03]}  Rfc8 {[%clk 0:02:52]} 13. Ne3 {[%clk 0:03:02]}  Qd8 {[%clk 0:02:50]} 14. Ng4 {[%clk 0:02:55]}  h6 {[%clk 0:02:44]} 15. Qd2 {[%clk 0:02:52]}  Bf8 {[%clk 0:02:44]} 16. Kh1 {[%clk 0:02:32]}  a5 {[%clk 0:02:41]} 17. Rg1 {[%clk 0:02:32]}  a4 {[%clk 0:02:42]} 18. a3 {[%clk 0:02:32]}  b4 {[%clk 0:02:41]} 19. Ngh2 {[%clk 0:02:25]}  bxa3 {[%clk 0:02:33]} 20. bxa3 {[%clk 0:02:25]}  c4 {[%clk 0:02:32]} 21. d4 {[%clk 0:02:21]}  c3 {[%clk 0:02:31]} 22. Qc1 {[%clk 0:02:21]}  Na5 {[%clk 0:02:29]} 23. h5 {[%clk 0:02:20]}  Nc4 {[%clk 0:02:28]} 24. g4 {[%clk 0:02:20]}  f5 {[%clk 0:02:00]} 25. g5 {[%clk 0:02:17]}  Kh7 {[%clk 0:01:53]} 26. Bf1 {[%clk 0:02:16]}  Qe8 {[%clk 0:01:42]} 27. gxh6 {[%clk 0:02:11]}  Qxh5 {[%clk 0:01:39]} 28. Ng5+ {[%clk 0:02:11]}  Kh8 {[%clk 0:01:21]} 29. Nxe6 {[%clk 0:02:06]}  gxh6 {[%clk 0:01:13]} 30. Bd3 {[%clk 0:01:39]}  Ndxe5 {[%clk 0:00:55]} 31. dxe5 {[%clk 0:01:28]}  d4+ {[%clk 0:00:54]} 32. f3 {[%clk 0:01:23]}  Bxf3+ {[%clk 0:00:53]} 33. Rg2 {[%clk 0:01:19]}  Bxg2+ {[%clk 0:00:49]} 34. Kxg2 {[%clk 0:01:20]}  Qg6+ {[%clk 0:00:48]} 35. Bg5 {[%clk 0:01:10]}  Be7 {[%clk 0:00:36]} 36. Nf3 {[%clk 0:01:05]}  hxg5 {[%clk 0:00:28]} 37. Nfxd4 {[%clk 0:00:40]}  Bc5 {[%clk 0:00:19]} 38. Bxf5 {[%clk 0:00:38]}  Qh5 {[%clk 0:00:14]} 39. Qh1 {[%clk 0:00:31]}  Ne3+ {[%clk 0:00:11]} 40. Kg3 {[%clk 0:00:28]}  Nxf5+ {[%clk 0:00:10]} 41. Nxf5 {[%clk 0:00:27]}  Qxh1 {[%clk 0:00:08]} 42. Rxh1+ {[%clk 0:00:28]}  Kg8 {[%clk 0:00:08]} 43. Nh6+ {[%clk 0:00:25]}  Kh7 {[%clk 0:00:06]} 44. Kg4 {[%clk 0:00:19]}  Kg6 {[%clk 0:00:06]} 45. Nf5 {[%clk 0:00:13]}  Rc6 {[%clk 0:00:04]} 46. Rh6+ {[%clk 0:00:09]}  Kf7 {[%clk 0:00:05]} 47. Nxg5+ {[%clk 0:00:09]}  Ke8 {[%clk 0:00:04]} 48. Rxc6 {[%clk 0:00:10]}  Kd7 {[%clk 0:00:04]} 49. Rxc5 {[%clk 0:00:10]}  Rh8 {[%clk 0:00:04]} 50. e6+ {[%clk 0:00:11]}  Ke8 {[%clk 0:00:03]} 51. Rc8# {[%clk 0:00:10]} 1-0


[Site "https://www.chess.com"]

[Event "Titled Tuesday Blitz August 3 2021"]
[White "Piesik, Piotr"]
[Black "Hoffmann, Asa"]
[WhiteFideId "1136194"]
[BlackFideId "2001470"]
[WhiteElo "2354"]
[BlackElo "2117"]
[Result "1-0"]
[Round "08"]
[TimeControl "180+1"]
[Date "2021.08.03"]
[WhiteClock "0:01:30"]
[BlackClock "0:01:13"]

1. Nf3 {[%clk 0:03:00]}  d6 {[%clk 0:02:57]} 2. d4 {[%clk 0:03:00]}  Bg4 {[%clk 0:02:56]} 3. e4 {[%clk 0:02:59]}  Nf6 {[%clk 0:02:55]} 4. Nbd2 {[%clk 0:02:59]}  c6 {[%clk 0:02:55]} 5. Bd3 {[%clk 0:02:59]}  e6 {[%clk 0:02:55]} 6. h3 {[%clk 0:02:58]}  Bh5 {[%clk 0:02:54]} 7. O-O {[%clk 0:02:58]}  d5 {[%clk 0:02:54]} 8. e5 {[%clk 0:02:58]}  Nfd7 {[%clk 0:02:54]} 9. c3 {[%clk 0:02:56]}  c5 {[%clk 0:02:54]} 10. Re1 {[%clk 0:02:51]}  Nc6 {[%clk 0:02:50]} 11. g4 {[%clk 0:02:51]}  Bg6 {[%clk 0:02:49]} 12. Nf1 {[%clk 0:02:50]}  Qb6 {[%clk 0:02:48]} 13. Ng3 {[%clk 0:02:44]}  Be7 {[%clk 0:02:41]} 14. Bf1 {[%clk 0:02:39]}  O-O-O {[%clk 0:02:26]} 15. h4 {[%clk 0:02:37]}  h5 {[%clk 0:02:24]} 16. gxh5 {[%clk 0:02:36]}  Bxh5 {[%clk 0:02:22]} 17. Nxh5 {[%clk 0:02:36]}  Rxh5 {[%clk 0:02:22]} 18. Bg5 {[%clk 0:02:34]}  f6 {[%clk 0:02:17]} 19. exf6 {[%clk 0:02:30]}  gxf6 {[%clk 0:02:17]} 20. Bf4 {[%clk 0:02:30]}  Rg8+ {[%clk 0:02:15]} 21. Bg3 {[%clk 0:02:29]}  Qxb2 {[%clk 0:02:02]} 22. Rxe6 {[%clk 0:02:26]}  Qxc3 {[%clk 0:01:57]} 23. Rc1 {[%clk 0:02:22]}  Qa5 {[%clk 0:01:49]} 24. Ne5 {[%clk 0:02:00]}  fxe5 {[%clk 0:01:41]} 25. Qxh5 {[%clk 0:01:59]}  Nxd4 {[%clk 0:01:39]} 26. Rxe7 {[%clk 0:01:58]}  Qd2 {[%clk 0:01:28]} 27. Re8+ {[%clk 0:01:49]}  Rxe8 {[%clk 0:01:25]} 28. Qxe8+ {[%clk 0:01:49]}  Kc7 {[%clk 0:01:25]} 29. Bxe5+ {[%clk 0:01:43]}  Nxe5 {[%clk 0:01:17]} 30. Qxe5+ {[%clk 0:01:43]}  Kc6 {[%clk 0:01:16]} 31. Qe8+ {[%clk 0:01:38]}  Kd6 {[%clk 0:01:15]} 32. Qf8+ {[%clk 0:01:31]}  Kd7 {[%clk 0:01:13]} 33. Bh3+ {[%clk 0:01:30]} 1-0


[Site "https://www.chess.com"]

[Event "Titled Tuesday Blitz August 3 2021"]
[White "Sadykov, Ramil"]
[Black "Nazaretyan, Tigran"]
[WhiteFideId "24113590"]
[BlackFideId "24162345"]
[WhiteElo "2300"]
[BlackElo "2214"]
[Result "1/2-1/2"]
[Round "08"]
[TimeControl "180+1"]
[Date "2021.08.03"]
[WhiteClock "0:00:09"]
[BlackClock "0:00:32"]

1. d4 {[%clk 0:02:58]}  Nf6 {[%clk 0:02:57]} 2. Nc3 {[%clk 0:02:58]}  d5 {[%clk 0:02:54]} 3. Bf4 {[%clk 0:02:58]}  a6 {[%clk 0:02:49]} 4. e3 {[%clk 0:02:54]}  Bf5 {[%clk 0:02:49]} 5. Nf3 {[%clk 0:02:54]}  h6 {[%clk 0:02:47]} 6. Ne5 {[%clk 0:02:54]}  e6 {[%clk 0:02:45]} 7. g4 {[%clk 0:02:52]}  Bh7 {[%clk 0:02:44]} 8. h4 {[%clk 0:02:49]}  Bb4 {[%clk 0:02:41]} 9. f3 {[%clk 0:02:25]}  c5 {[%clk 0:02:37]} 10. g5 {[%clk 0:02:22]}  Nh5 {[%clk 0:02:36]} 11. a3 {[%clk 0:02:05]}  Bxc3+ {[%clk 0:02:30]} 12. bxc3 {[%clk 0:02:06]}  Nxf4 {[%clk 0:02:25]} 13. exf4 {[%clk 0:02:06]}  Qa5 {[%clk 0:02:22]} 14. Qd2 {[%clk 0:01:49]}  Bf5 {[%clk 0:02:07]} 15. g6 {[%clk 0:01:39]}  fxg6 {[%clk 0:02:05]} 16. Bd3 {[%clk 0:01:24]}  Nc6 {[%clk 0:01:50]} 17. Nxg6 {[%clk 0:01:17]}  Bxg6 {[%clk 0:01:38]} 18. Bxg6+ {[%clk 0:01:16]}  Kd7 {[%clk 0:01:39]} 19. Rb1 {[%clk 0:01:05]}  Kc7 {[%clk 0:01:29]} 20. f5 {[%clk 0:00:46]}  cxd4 {[%clk 0:01:28]} 21. fxe6 {[%clk 0:00:42]}  Qxc3 {[%clk 0:01:25]} 22. Rb3 {[%clk 0:00:23]}  Qa1+ {[%clk 0:01:17]} 23. Kf2 {[%clk 0:00:16]}  Qxh1 {[%clk 0:01:16]} 24. Qf4+ {[%clk 0:00:16]}  Kc8 {[%clk 0:01:12]} 25. e7 {[%clk 0:00:15]}  Nxe7 {[%clk 0:01:05]} 26. Bf5+ {[%clk 0:00:13]}  Nxf5 {[%clk 0:00:57]} 27. Qxf5+ {[%clk 0:00:13]}  Kb8 {[%clk 0:00:52]} 28. Qe5+ {[%clk 0:00:13]}  Kc8 {[%clk 0:00:44]} 29. Qe6+ {[%clk 0:00:13]}  Kb8 {[%clk 0:00:44]} 30. Qd6+ {[%clk 0:00:12]}  Kc8 {[%clk 0:00:44]} 31. Qe6+ {[%clk 0:00:08]}  Kb8 {[%clk 0:00:34]} 32. Qd6+ {[%clk 0:00:08]}  Kc8 {[%clk 0:00:32]} 33. Qe6+ {[%clk 0:00:09]} 1/2-1/2


[Site "https://www.chess.com"]